[Event "Int SVK-ch Open 2020"]
[Site "Drienica"]
[Date "2020.08.13"]
[Round "6.11"]
[White "Ihnat, Marek"]
[Black "Garancovsky, Pavol"]
[Result "1/2-1/2"]
[ECO "A43"]
[WhiteElo "2065"]
[BlackElo "2027"]
[Annotator "ChessBase"]
[PlyCount "259"]
[EventDate "2020.08.07"]
[EventType "swiss"]
[EventCountry "SVK"]
[TimeControl "40/5400+30:1800+30"]

1. e4 {[%emt 0:00:00]} e6 {[%emt 0:01:23]} 2. d4 {[%emt 0:00:00]} c5 {[%emt 0:00:07]} 3. d5 {[%emt 0:00:00]} d6 {[%emt 0:00:46]} 4. Nc3 {[%emt 0:01:14]} Nf6 {[%emt 0:00:13]} 5. Nf3 {[%emt 0:00:59]} exd5 {[%emt 0:00:16]} 6. exd5 {[%emt 0:00:13]} a6 {[%emt 0:00:40]} 7. a4 {[%emt 0:01:50]} Be7 {[%emt 0:04:27]} 8. h3 {[%emt 0:05:12]} Nbd7 {[%emt 0:03:44]} 9. Bf4 {[%emt 0:02:50]} b6 {[%emt 0:05:25]} 10. Bc4 {[%emt 0:05:19]} Nf8 {[%emt 0:01:27]} 11. O-O {[%emt 0:03:05]} Ng6 {[%emt 0:04:17]} 12. Bh2 {[%emt 0:01:07]} O-O {[%emt 0:06:57]} 13. Re1 {[%emt 0:00:35]} Re8 {[%emt 0:19:15]} 14. Qd3 {[%emt 0:04:16]} h6 {[%emt 0:03:45]} 15. Re2 {[%emt 0:03:21]} Nh5 {[%emt 0:01:51]} 16. Qd2 {[%emt 0:00:52]} Bd7 {[%emt 0:01:16]} 17. Rae1 {[%emt 0:01:47]} Bf8 {[%emt 0:01:06]} 18. Rxe8 {[%emt 0:03:27]} Bxe8 {[%emt 0:00:08]} 19. Bd3 {[%emt 0:04:18]} Nh4 {[%emt 0:03:12]} 20. Qe2 {[%emt 0:02:08]} Nxf3+ {[%emt 0:08:36]} 21. Qxf3 {[%emt 0:00:34]} Nf6 {[%emt 0:01:18]} 22. Bf4 {[%emt 0:08:07]} Bd7 {[%emt 0:06:02]} 23. Kh1 {[%emt 0:03:35]} Nh7 {[%emt 0:08:59]} 24. Qg3 {[%emt 0:02:44]} Qf6 {[%emt 0:05:08]} 25. Ne4 {[%emt 0:17:18]} Qxb2 {[%emt 0:01:13]} 26. Bxh6 {[%emt 0:06:37]} c4 {[%emt 0:04:42]} 27. Bxc4 {[%emt 0:02:10]} Re8 {[%emt 0:01:22]} 28. Bd3 {[%emt 0:01:15]} f5 {[%emt 0:00:19]} 29. f3 {[%emt 0:15:03]} fxe4 {[%emt 0:00:17]} 30. fxe4 {[%emt 0:00:13]} Nf6 {[%emt 0:01:27]} 31. Rf1 {[%emt 0:01:10]} Qe5 {[%emt 0:00:54]} 32. Qg6 {[%emt 0:01:13]} b5 {[%emt 0:01:45]} 33. axb5 {[%emt 0:00:11]} axb5 {[%emt 0:00:18]} 34. Bg5 {[%emt 0:02:05]} Be7 {[%emt 0:00:24]} 35. Bh6 {[%emt 0:00:25]} Bf8 {[%emt 0:01:10]} 36. Bg5 {[%emt 0:00:07]} Nh7 {[%emt 0:00:56]} 37. Qf7+ {[%emt 0:02:30]} Kh8 {[%emt 0:00:07]} 38. Qxd7 {[%emt 0:00:37]} Nxg5 {[%emt 0:00:11]} 39. Rf5 {[%emt 0:00:24]} Qe7 {[%emt 0:00:55]} 40. Qxb5 {[%emt 0:00:29]} Nf7 {[%emt 0:02:25]} 41. Qb1 {[%emt 0:06:48]} g6 {[%emt 0:00:39]} 42. Rf4 {[%emt 0:03:58]} Bh6 {[%emt 0:03:53]} 43. Rf2 {[%emt 0:01:17]} Ne5 {[%emt 0:00:41]} 44. g3 {[%emt 0:03:35]} Rf8 {[%emt 0:01:30]} 45. Qf1 {[%emt 0:01:31]} Rxf2 {[%emt 0:00:13]} 46. Qxf2 {[%emt 0:00:05]} Qf8 {[%emt 0:00:20]} 47. Qxf8+ {[%emt 0:00:46]} Bxf8 {[%emt 0:00:37]} 48. Kg2 {[%emt 0:00:40]} Kg7 {[%emt 0:00:27]} 49. Kf2 {[%emt 0:03:20]} Kf6 {[%emt 0:00:58]} 50. Be2 {[%emt 0:01:48]} Bh6 {[%emt 0:01:57]} 51. Bf1 {[%emt 0:01:58]} Nf7 {[%emt 0:03:56]} 52. h4 {[%emt 0:01:10]} Ke5 {[%emt 0:00:15]} 53. Bd3 {[%emt 0:03:53]} Kd4 {[%emt 0:00:19]} 54. g4 {[%emt 0:00:05]} Bc1 {[%emt 0:05:38]} 55. h5 {[%emt 0:00:49]} Ne5 {[%emt 0:01:06]} 56. hxg6 {[%emt 0:02:46]} Nxg6 {[%emt 0:02:16]} 57. Kg3 {[%emt 0:03:09]} Bf4+ {[%emt 0:03:01]} 58. Kf3 {[%emt 0:00:09]} Bg5 {[%emt 0:00:12]} 59. Kg3 {[%emt 0:01:43]} Ne5 {[%emt 0:00:09]} 60. Ba6 {[%emt 0:00:39]} Kxe4 {[%emt 0:00:17]} 61. Bb7 {[%emt 0:00:25]} Kd4 {[%emt 0:00:21]} 62. Ba8 {[%emt 0:00:27]} Kc3 {[%emt 0:00:16]} 63. Bb7 {[%emt 0:00:08]} Kxc2 {[%emt 0:00:13]} 64. Bc8 {[%emt 0:00:13]} Kd3 {[%emt 0:00:32]} 65. Be6 {[%emt 0:00:12]} Kd4 {[%emt 0:00:47]} 66. Bg8 {[%emt 0:00:47]} Ng6 {[%emt 0:00:32]} 67. Bf7 {[%emt 0:00:43]} Nf4 {[%emt 0:00:26]} 68. Bg8 {[%emt 0:00:35]} Nxd5 {[%emt 0:00:55]} 69. Be6 {[%emt 0:00:33]} Nf4 {[%emt 0:00:34]} 70. Bg8 {[%emt 0:00:47]} Ke3 {[%emt 0:00:21]} 71. Ba2 {[%emt 0:00:26]} Ng6 {[%emt 0:00:34]} 72. Bb3 {[%emt 0:00:25]} Bh4+ {[%emt 0:00:38]} 73. Kh3 {[%emt 0:00:26]} Be1 {[%emt 0:01:26]} 74. Kg2 {[%emt 0:00:49]} Kf4 {[%emt 0:00:20]} 75. Ba2 {[%emt 0:00:22]} Kxg4 {[%emt 0:00:21]} 76. Be6+ {[%emt 0:00:12]} Kf4 {[%emt 0:00:13]} 77. Ba2 {[%emt 0:00:11]} Ke3 {[%emt 0:00:51]} 78. Bb3 {[%emt 0:00:34]} Nh4+ {[%emt 0:00:58]} 79. Kh3 {[%emt 0:00:39]} Kf4 {[%emt 0:00:30]} 80. Bd5 {[%emt 0:00:53]} Bg3 {[%emt 0:00:49]} 81. Ba8 {[%emt 0:00:17]} Ng6 {[%emt 0:00:36]} 82. Bb7 {[%emt 0:00:25]} Be1 {[%emt 0:00:25]} 83. Ba8 {[%emt 0:00:13]} Kg5 {[%emt 0:00:40]} 84. Bb7 {[%emt 0:00:07]} Nf4+ {[%emt 0:00:21]} 85. Kh2 {[%emt 0:00:05]} Kh4 {[%emt 0:00:40]} 86. Ba8 {[%emt 0:00:28]} Bg3+ {[%emt 0:00:13]} 87. Kh1 {[%emt 0:01:00]} Kh3 {[%emt 0:00:15]} 88. Kg1 {[%emt 0:00:50]} Ng6 {[%emt 0:01:10]} 89. Bb7 {[%emt 0:00:15]} Nh4 {[%emt 0:00:32]} 90. Bc6 {[%emt 0:00:22]} Kg4 {[%emt 0:00:17]} 91. Bb7 {[%emt 0:00:31]} Ng6 {[%emt 0:00:43]} 92. Bc8+ {[%emt 0:00:28]} Kf4 {[%emt 0:00:13]} 93. Bb7 {[%emt 0:00:11]} Ne7 {[%emt 0:00:10]} 94. Kg2 {[%emt 0:00:19]} d5 {[%emt 0:00:06]} 95. Bxd5 {[%emt 0:00:09]} Nxd5 {[%emt 0:00:09]} 96. Kh1 {[%emt 0:00:18]} Kg4 {[%emt 0:00:17]} 97. Kg2 {[%emt 0:00:31]} Nf4+ {[%emt 0:00:21]} 98. Kg1 {[%emt 0:00:35]} Kh3 {[%emt 0:01:04]} 99. Kh1 {[%emt 0:00:10]} Nd3 {[%emt 0:00:11]} 100. Kg1 {[%emt 0:00:05]} Bh2+ {[%emt 0:00:11]} 101. Kf1 {[%emt 0:00:14]} Kg3 {[%emt 0:00:43]} 102. Ke2 {[%emt 0:00:04]} Ne5 {[%emt 0:00:18]} 103. Ke3 {[%emt 0:00:23]} Kg4 {[%emt 0:00:24]} 104. Ke4 {[%emt 0:00:14]} Bf4 {[%emt 0:00:19]} 105. Kd5 {[%emt 0:00:10]} Kf5 {[%emt 0:00:18]} 106. Kd4 {[%emt 0:00:24]} Nf7 {[%emt 0:00:16]} 107. Kd5 {[%emt 0:00:08]} Be5 {[%emt 0:00:09]} 108. Kc5 {[%emt 0:00:13]} Ke6 {[%emt 0:00:12]} 109. Kc6 {[%emt 0:00:08]} Bd6 {[%emt 0:00:22]} 110. Kb5 {[%emt 0:00:19]} Kd5 {[%emt 0:00:11]} 111. Kb6 {[%emt 0:00:31]} Ne5 {[%emt 0:00:22]} 112. Kb7 {[%emt 0:00:00]} Nd7 {[%emt 0:00:35]} 113. Ka8 {[%emt 0:00:41]} Kc6 {[%emt 0:00:22]} 114. Ka7 {[%emt 0:00:03]} Nb6 {[%emt 0:00:11]} 115. Ka6 {[%emt 0:00:08]} Nd7 {[%emt 0:02:35]} 116. Ka7 {[%emt 0:00:08]} Bc5+ {[%emt 0:01:16]} 117. Ka8 {[%emt 0:00:24]} Nb6+ {[%emt 0:00:14]} 118. Kb8 {[%emt 0:00:42]} Bd6+ {[%emt 0:00:38]} 119. Ka7 {[%emt 0:00:10]} Bc7 {[%emt 0:00:09]} 120. Ka6 {[%emt 0:00:08]} Bd6 {[%emt 0:02:38]} 121. Ka7 {[%emt 0:00:16]} Nd5 {[%emt 0:00:47]} 122. Ka8 {[%emt 0:00:33]} Bc5 {[%emt 0:00:14]} 123. Kb8 {[%emt 0:00:10]} Nc7 {[%emt 0:00:12]} 124. Kc8 {[%emt 0:00:06]} Na6 {[%emt 0:00:25]} 125. Kd8 {[%emt 0:00:11]} Nc7 {[%emt 0:01:06]} 126. Kc8 {[%emt 0:00:09]} Ba7 {[%emt 0:00:20]} 127. Kd8 {[%emt 0:00:10]} Nb5 {[%emt 0:00:17]} 128. Kc8 {[%emt 0:00:44]} Nd6+ {[%emt 0:00:12]} 129. Kd8 {[%emt 0:00:12]} Nf5 {[%emt 0:01:40]} 130. Ke8 {[%emt 0:00:47]} 1/2-1/2

[Event "Int SVK-ch Open 2020"]
[Site "Drienica"]
[Date "2020.08.12"]
[Round "6.11"]
[White "Budjac, Martin"]
[Black "Nandrazi, Dominik"]
[Result "0-1"]
[ECO "A33"]
[WhiteElo "1511"]
[BlackElo "1875"]
[Annotator "NA"]
[PlyCount "114"]
[EventDate "2020.08.07"]
[EventType "swiss"]
[EventCountry "SVK"]
[SourceTitle "playchess.com"]
[Source "ChessBase"]
[SourceQuality "1"]
[TimeControl "40/5400+30:1800+30"]

1. d4 {[%emt 0:00:00]} c5 {[%emt 0:00:00]} 2. c4 {[%emt 0:00:00]} e6 {[%emt 0:00:00]} 3. Nf3 {[%emt 0:00:00]} Nf6 {[%emt 0:00:00]} 4. Nc3 {[%emt 0:00:29]} cxd4 {[%emt 0:01:15]} 5. Nxd4 {[%emt 0:00:07]} Nc6 {[%emt 0:00:06]} 6. g3 {[%emt 0:00:08]} Bc5 {[%emt 0:01:38]} 7. Nb3 {[%emt 0:02:31]} Be7 {[%emt 0:04:02]} 8. Bg2 {[%emt 0:01:51] [#]} Ne5 $146 {[%emt 0:02:06] A33: Symmetrical English: 2 Nf3 Nf6 3 d4 cxd4 4 Nxd4 e6 5 Nc3 Nc6.} ({Predecessor:} 8... O-O 9. Bf4 b6 10. O-O Ba6 11. Nb5 Rc8 12. Nd6 Rc7 13. Rc1 Nh5 14. Be3 Nf6 15. Bf4 Nh5 16. Be3 Nf6 17. Bf4 {½-½ (17) Gelfand,B (2695)-Mamedyarov,S (2809) Moscow 2018}) 9. Nd2 {[%emt 0:01:38]} h5 {[%emt 0:02:20]} 10. h3 {[%emt 0:01:18]} h4 {[%emt 0:05:59]} 11. g4 {[%emt 0:00:08]} Qc7 {[%emt 0:00:08]} 12. b3 {[%emt 0:04:18]} Ng6 {[%emt 0:04:38]} 13. e3 {[%emt 0:02:01]} d5 {[%emt 0:01:30]} 14. Bb2 {[%emt 0:03:09]} dxc4 {[%emt 0:05:40]} 15. Nxc4 {[%emt 0:00:28]} Bd7 {[%emt 0:00:46]} 16. O-O {[%emt 0:04:43]} (16. g5 $5 {[%cal Rg5f6]} Nh7 17. Ne4 $16) 16... Bc6 {[%emt 0:01:35]} 17. Rc1 {[%emt 0:01:25]} Rd8 {[%emt 0:00:24]} 18. Qe2 {[%emt 0:00:36]} Bxg2 {[%emt 0:06:17]} 19. Kxg2 {[%emt 0:00:07]} O-O {[%emt 0:00:39]} 20. Qf3 {[%emt 0:01:23]} Nh7 {[%emt 0:02:24]} 21. Ne4 {[%emt 0:04:19]} Qb8 {[%emt 0:07:30]} 22. Rfd1 {[%emt 0:02:30]} Rd5 {[%emt 0:02:20]} 23. Rc2 {[%emt 0:05:36]} b5 {[%emt 0:07:17]} 24. Na5 {[%emt 0:01:37]} Qa8 {[%emt 0:05:50]} 25. Rxd5 {[%emt 0:06:47]} exd5 {[%emt 0:00:03]} 26. Nc3 {[%emt 0:02:26]} Bb4 {[%emt 0:00:17]} 27. Nb7 {[%emt 0:02:42]} Bxc3 $1 {[%emt 0:00:48]} 28. Bxc3 {[%emt 0:05:13]} Qxb7 {[%emt 0:00:04]} 29. Rd2 {[%emt 0:00:48]} Rd8 {[%emt 0:00:49]} 30. Bd4 {[%emt 0:02:04]} Ng5 {[%emt 0:00:08]} 31. Qf5 {[%emt 0:01:06]} Ne4 {[%emt 0:00:10]} 32. Rc2 {[%emt 0:00:47]} Qd7 {[%emt 0:00:11]} 33. Qh5 {[%emt 0:01:32]} Nf6 {[%emt 0:02:02]} 34. Qg5 {[%emt 0:01:59]} Rc8 {[%emt 0:00:30]} 35. Rxc8+ {[%emt 0:02:07]} Qxc8 {[%emt 0:00:02]} 36. Bxf6 {[%emt 0:02:20]} gxf6 {[%emt 0:00:02]} 37. Qxf6 {[%emt 0:00:12]} Qe6 {[%emt 0:00:16]} 38. Qg5 {[%emt 0:01:10]} Qe4+ {[%emt 0:00:11]} 39. Kg1 {[%emt 0:00:21]} Kg7 {[%emt 0:00:22]} 40. Qd8 {[%emt 0:00:55]} Ne5 {[%emt 0:01:36]} 41. Qg5+ {[%emt 0:30:43]} Ng6 {[%emt 0:30:01]} 42. Qd8 {[%emt 0:00:18]} Qf3 {[%emt 0:00:06]} 43. g5 {[%emt 0:00:39]} Qf5 {[%emt 0:00:25]} 44. Kg2 {[%emt 0:01:32]} Ne5 {[%emt 0:00:04]} 45. Qxd5 {[%emt 0:00:58]} Qxg5+ {[%emt 0:00:01]} 46. Kf1 {[%emt 0:00:16]} Qf5 {[%emt 0:00:24]} 47. Kg2 {[%emt 0:00:29]} Kg6 {[%emt 0:01:21]} 48. e4 {[%emt 0:02:08]} Qg5+ {[%emt 0:01:19]} (48... Qf3+ $142 49. Kg1 Nd3 50. Qf5+ Qxf5 51. exf5+ Kxf5) 49. Kf1 {[%emt 0:01:23]} Nf3 {[%emt 0:00:56]} 50. Qc6+ {[%emt 0:04:28]} Kh7 {[%emt 0:00:06]} 51. Qe8 {[%emt 0:01:29]} Qg1+ {[%emt 0:13:58]} 52. Ke2 {[%emt 0:00:13]} Nd4+ {[%emt 0:00:02]} 53. Ke3 {[%emt 0:01:10]} Nc2+ {[%emt 0:03:07]} 54. Kf3 {[%emt 0:00:46]} Qd1+ {[%emt 0:01:32]} 55. Kf4 {[%emt 0:01:02]} Qh5 {[%emt 0:01:22]} (55... Qd2+ $142 56. Kg4 Qxf2) 56. Qd8 {[%emt 0:04:59]} Ne1 {[%emt 0:01:05]} 57. Qd6 {[%emt 0:04:00]} Ng2# 0-1

[Event "Int SVK-ch Open 2020"]
[Site "Drienica"]
[Date "2020.08.13"]
[Round "6.12"]
[White "Sankova, Stella"]
[Black "Demeter, Peter"]
[Result "0-1"]
[ECO "A05"]
[WhiteElo "1990"]
[BlackElo "2139"]
[Annotator "ChessBase"]
[PlyCount "54"]
[EventDate "2020.08.07"]
[EventType "swiss"]
[EventCountry "SVK"]
[TimeControl "40/5400+30:1800+30"]

1. Nf3 {[%emt 0:00:00]} Nf6 {[%emt 0:00:03]} 2. c4 {[%emt 0:00:03]} c5 {[%emt 0:00:15]} 3. b3 {[%emt 0:00:55]} g6 {[%emt 0:00:09]} 4. Bb2 {[%emt 0:00:09]} Bg7 {[%emt 0:00:06]} 5. g3 {[%emt 0:00:43]} O-O {[%emt 0:00:10]} 6. Bg2 {[%emt 0:00:05]} Nc6 {[%emt 0:00:04]} 7. O-O {[%emt 0:00:09]} d5 {[%emt 0:04:11]} 8. cxd5 {[%emt 0:00:25]} Qxd5 {[%emt 0:00:49]} 9. Ne5 {[%emt 0:03:10]} Qd6 {[%emt 0:01:40]} 10. Nxc6 {[%emt 0:01:04]} bxc6 {[%emt 0:00:07]} 11. Na3 {[%emt 0:03:29]} Bg4 {[%emt 0:03:21]} 12. Rc1 {[%emt 0:04:36]} Nd7 {[%emt 0:07:50]} 13. Bxg7 {[%emt 0:00:36]} Kxg7 {[%emt 0:00:07]} 14. d3 {[%emt 0:14:13]} Qe6 {[%emt 0:03:26]} 15. Rc2 {[%emt 0:03:38]} Bh3 {[%emt 0:03:00]} 16. Nb1 {[%emt 0:02:36]} h5 {[%emt 0:04:47]} 17. e3 {[%emt 0:08:34]} Bxg2 {[%emt 0:01:57]} 18. Kxg2 {[%emt 0:00:03]} h4 {[%emt 0:01:25]} 19. Qf3 {[%emt 0:02:51]} hxg3 {[%emt 0:09:34]} 20. Qxg3 {[%emt 0:04:47]} Rh8 {[%emt 0:01:36]} 21. Nd2 {[%emt 0:07:16]} Rh5 {[%emt 0:10:22]} 22. Nf3 {[%emt 0:04:55]} Rah8 {[%emt 0:00:18]} 23. Rc4 {[%emt 0:01:44]} Rh3 {[%emt 0:03:32]} 24. Qf4 {[%emt 0:00:10]} Qd5 {[%emt 0:06:22]} 25. Qe4 {[%emt 0:03:11]} Rxf3 {[%emt 0:01:31]} 26. Kxf3 {[%emt 0:00:34]} Qh5+ {[%emt 0:00:13]} 27. Kf4 {[%emt 0:03:35]} e5+ {[%emt 0:00:29]} 0-1

[Event "Int SVK-ch Open 2020"]
[Site "Drienica"]
[Date "2020.08.12"]
[Round "6.12"]
[White "Zahradnik, Vladimir"]
[Black "Ganzova, Veronika"]
[Result "0-1"]
[ECO "A16"]
[WhiteElo "1874"]
[BlackElo "1614"]
[Annotator "NA"]
[PlyCount "74"]
[EventDate "2020.08.07"]
[EventType "swiss"]
[EventCountry "SVK"]
[SourceTitle "playchess.com"]
[Source "ChessBase"]
[SourceQuality "1"]
[TimeControl "40/5400+30:1800+30"]

1. c4 {[%emt 0:00:00]} Nf6 {[%emt 0:00:00]} 2. Nc3 {[%emt 0:00:00]} g6 {[%emt 0:00:36]} 3. g3 {[%emt 0:00:28]} Bg7 {[%emt 0:00:23]} 4. Bg2 {[%emt 0:00:07]} d6 {[%emt 0:01:37]} 5. Rb1 {[%emt 0:01:23]} O-O {[%emt 0:01:16]} 6. b4 {[%emt 0:00:49] A16: English Opening: 1...Nf6 with ...d5.} e5 {[%emt 0:05:22]} 7. d3 {[%emt 0:00:19]} Nbd7 {[%emt 0:03:20]} 8. Nf3 {[%emt 0:00:50]} Nh5 {[%emt 0:01:11] [#]} 9. Qb3 $146 {[%emt 0:00:25]} ({Predecessor:} 9. b5 Nc5 10. a4 f5 11. Bg5 Qe8 12. Nd5 Ne6 13. Bd2 f4 14. Ba5 Qf7 15. O-O {1-0 (52) Daly,C (2380)-Thomas,J (1988) Turin 2006}) 9... Kh8 {[%emt 0:02:47]} 10. O-O {[%emt 0:01:58]} h6 {[%emt 0:02:56]} 11. d4 {[%emt 0:03:18]} exd4 {[%emt 0:03:18]} 12. Nb5 {[%emt 0:00:12]} Ne5 {[%emt 0:04:29]} 13. Nbxd4 {[%emt 0:00:26]} Rb8 {[%emt 0:01:28]} 14. Bb2 {[%emt 0:04:45]} Bg4 {[%emt 0:03:00]} 15. h3 {[%emt 0:01:12]} Bd7 {[%emt 0:01:08]} 16. b5 {[%emt 0:05:39]} Qc8 {[%emt 0:02:08]} 17. Kh2 {[%emt 0:00:17]} g5 {[%emt 0:07:46]} 18. Ng1 {[%emt 0:00:37]} f5 {[%emt 0:06:07]} 19. f4 {[%emt 0:08:00]} gxf4 {[%emt 0:02:31]} 20. gxf4 {[%emt 0:00:08]} Ng6 {[%emt 0:00:44]} 21. e3 {[%emt 0:01:12]} Bf6 {[%emt 0:01:06]} 22. Ndf3 {[%emt 0:00:52]} ({White should play} 22. Qd1 $14 Ng7 23. Nge2) 22... Qd8 {[%emt 0:02:05]} 23. Ne2 {[%emt 0:01:08]} Rg8 {[%emt 0:01:17]} 24. Bd4 {[%emt 0:06:03]} Bxd4 {[%emt 0:02:09]} 25. Nexd4 {[%emt 0:01:14]} Nh4 {[%emt 0:00:48]} 26. Nxh4 {[%emt 0:04:28]} Qxh4 {[%emt 0:01:15]} 27. Rf3 {[%emt 0:01:52]} Rg7 {[%emt 0:02:46]} 28. Rg1 {[%emt 0:02:16]} Rbg8 {[%emt 0:00:52]} 29. Ne2 {[%emt 0:00:50]} Nf6 {[%emt 0:00:56]} 30. Qc3 {[%emt 0:10:22]} Be8 {[%emt 0:08:32]} 31. e4 {[%emt 0:08:22]} Nxe4 {[%emt 0:11:56]} 32. Qb2 {[%emt 0:02:23]} Bh5 {[%emt 0:01:42]} 33. Re3 {[%emt 0:00:31]} Bxe2 {[%emt 0:01:36]} 34. Bxe4 {[%emt 0:02:09]} Qf2+ {[%emt 0:01:11] Double Attack} 35. Rg2 {[%emt 0:01:00]} Qxe3 {[%emt 0:00:23]} 36. Bd5 {[%emt 0:01:33]} Qxf4+ {[%emt 0:02:09]} 37. Kg1 {[%emt 0:00:33]} Bf3 {[%emt 0:02:58]} 0-1

[Event "Int SVK-ch Open 2020"]
[Site "Drienica"]
[Date "2020.08.13"]
[Round "6.13"]
[White "Kravec, Patrik"]
[Black "Skovran, Jaroslav"]
[Result "1-0"]
[ECO "B01"]
[WhiteElo "2119"]
[BlackElo "1975"]
[Annotator "ChessBase"]
[PlyCount "49"]
[EventDate "2020.08.07"]
[EventType "swiss"]
[EventCountry "SVK"]
[TimeControl "40/5400+30:1800+30"]

1. e4 {[%emt 0:04:29]} d5 {[%emt 0:03:52]} 2. exd5 {[%emt 0:00:05]} Qxd5 {[%emt 0:00:11]} 3. Nc3 {[%emt 0:00:01]} Qa5 {[%emt 0:00:15]} 4. b4 {[%emt 0:00:10]} Qe5+ {[%emt 0:00:38]} 5. Be2 {[%emt 0:02:10]} Bg4 {[%emt 0:00:34]} 6. d4 {[%emt 0:02:53]} Bxe2 {[%emt 0:00:11]} 7. Ngxe2 {[%emt 0:01:04]} Qf5 {[%emt 0:03:00]} 8. O-O {[%emt 0:02:58]} c6 {[%emt 0:01:09]} 9. Ng3 {[%emt 0:02:33]} Qc8 {[%emt 0:03:51]} 10. Nce4 {[%emt 0:06:19]} e6 {[%emt 0:07:24]} 11. Bf4 {[%emt 0:02:00]} Nf6 {[%emt 0:06:17]} 12. Nxf6+ {[%emt 0:06:40]} gxf6 {[%emt 0:03:19]} 13. Ne4 {[%emt 0:00:35]} Qd8 {[%emt 0:02:36]} 14. Rb1 {[%emt 0:14:41]} Be7 {[%emt 0:10:02]} 15. c3 {[%emt 0:03:45]} Qd5 {[%emt 0:09:07]} 16. Qe2 {[%emt 0:00:58]} Qf5 {[%emt 0:09:29]} 17. Bd6 {[%emt 0:03:45]} Rg8 {[%emt 0:03:25]} 18. b5 {[%emt 0:02:34]} b6 {[%emt 0:02:40]} 19. Rfe1 {[%emt 0:10:19]} Kd7 {[%emt 0:07:58]} 20. Bg3 {[%emt 0:04:51]} c5 {[%emt 0:07:52]} 21. dxc5 {[%emt 0:07:20]} Bxc5 {[%emt 0:00:53]} 22. Rbd1+ {[%emt 0:04:29]} Kc8 {[%emt 0:04:30]} 23. Nxc5 {[%emt 0:08:09]} bxc5 {[%emt 0:00:14]} 24. Qd2 {[%emt 0:00:24]} Kb7 {[%emt 0:02:00]} 25. Qd6 {[%emt 0:00:27]} 1-0

[Event "Int SVK-ch Open 2020"]
[Site "Drienica"]
[Date "2020.08.12"]
[Round "6.13"]
[White "Furman, Maximilian Jan"]
[Black "Stanko, Ivan"]
[Result "1/2-1/2"]
[ECO "B30"]
[WhiteElo "1598"]
[BlackElo "1848"]
[Annotator "NA RC"]
[PlyCount "96"]
[EventDate "2020.08.07"]
[EventType "swiss"]
[EventCountry "SVK"]
[SourceTitle "playchess.com"]
[Source "ChessBase"]
[SourceQuality "1"]
[TimeControl "40/5400+30:1800+30"]

{[%evp 14,95,30,0,32767,32767,32767,32767,32767,32767,32767,32767,0,-10,32767,32767,32767,32767,32767,32767,32767,0,32767,32767,32767,32767,32767,32767,37,32767,0,32767,-4,32767,-8,-7,32767,-31,-22,32767,32767,-10,32767,32767,32767,32767,32767,32767,32767,32767,32767,32767,32767,35,9,0,29,30,15,7,31,0,0,32767,32767,0,-20,0,0,-17,-8,-12831,-237,-604,-690,-681,-937,-29993,-208,-29994,-29995,-29995,0,-385]} 1. e4 {[%emt 0:00:00]} c5 {[%emt 0:00:00]} 2. Nf3 {[%emt 0:00:00]} Nc6 {[%emt 0:00:00]} 3. Bb5 {[%emt 0:00:00]} e6 {[%emt 0:00:27]} 4. O-O {[%emt 0:00:38]} Nf6 {[%emt 0:00:18]} 5. Re1 {[%emt 0:01:06]} Be7 {[%emt 0:00:26]} 6. c3 {[%emt 0:01:26] B30: Sicilian: 2...Nc6 3 Bb5, lines without ...g6.} O-O {[%emt 0:01:17]} 7. d4 {[%emt 0:02:43]} cxd4 {[%emt 0:05:13] [#]} 8. Nxd4 $146 {[%emt 0:04:12]} ({Predecessor:} 8. cxd4 a6 9. Ba4 b5 10. Bc2 Nb4 11. Bb3 Bb7 12. a3 Nc6 13. d5 exd5 14. exd5 {1-0 (26) Abdullahi,G (1868)-Kamya,D (1686) Kampala 2020}) 8... Nxd4 {[%emt 0:04:10]} 9. cxd4 {[%emt 0:02:32]} a6 {[%emt 0:06:10]} 10. Bd3 {[%emt 0:03:53]} d6 {[%emt 0:00:33]} 11. Nc3 {[%emt 0:00:53]} e5 {[%emt 0:01:13]} 12. dxe5 {[%emt 0:07:14]} dxe5 {[%emt 0:00:50]} 13. Bc4 {[%emt 0:02:04]} Bg4 {[%emt 0:13:51]} 14. f3 {[%emt 0:06:35]} Qb6+ {[%emt 0:08:06]} 15. Kh1 {[%emt 0:17:33]} Be6 {[%emt 0:14:41]} 16. Bxe6 {[%emt 0:08:58]} Qxe6 {[%emt 0:02:34]} 17. Qe2 {[%emt 0:01:26]} Nh5 {[%emt 0:07:50]} 18. Nd5 {[%emt 0:02:38]} Rac8 {[%emt 0:00:40]} 19. Be3 {[%emt 0:02:49]} Bh4 {[%emt 0:05:23]} 20. Rec1 {[%emt 0:06:08]} f5 {[%emt 0:03:48]} 21. Kg1 {[%emt 0:06:27]} fxe4 {[%emt 0:03:06]} 22. fxe4 {[%emt 0:00:57]} Nf4 {[%emt 0:01:12]} 23. Bxf4 {[%emt 0:00:34]} exf4 {[%emt 0:00:29]} 24. Rxc8 {[%emt 0:01:50]} Qxc8 {[%emt 0:01:33]} 25. Nc3 {[%emt 0:06:10]} Qc5+ {[%emt 0:02:17]} 26. Kh1 {[%emt 0:01:23]} Qe5 {[%emt 0:05:18]} 27. Rd1 {[%emt 0:01:47]} b5 {[%emt 0:03:04]} 28. a3 {[%emt 0:00:13]} Rd8 {[%emt 0:00:48]} 29. Rxd8+ {[%emt 0:01:01]} Bxd8 {[%emt 0:00:09]} 30. Qd3 {[%emt 0:00:19]} Bf6 {[%emt 0:01:33]} 31. Qd7 {[%emt 0:03:13]} Qc5 {[%emt 0:01:39]} 32. Qe8+ {[%emt 0:01:23]} Qf8 {[%emt 0:00:02]} 33. Qe6+ {[%emt 0:00:22] Double Attack} Kh8 {[%emt 0:01:57]} 34. Qxa6 {[%emt 0:00:54]} Qd8 {[%emt 0:00:12]} 35. h3 {[%emt 0:00:50]} h6 {[%emt 0:02:06]} 36. Qxb5 {[%emt 0:00:28]} Qd2 {[%emt 0:00:34]} 37. Ne2 {[%emt 0:06:16]} Qe1+ {[%emt 0:01:03]} 38. Kh2 {[%emt 0:00:14]} f3 {[%emt 0:00:49]} 39. gxf3 {[%emt 0:01:34]} Qf2+ {[%emt 0:00:16]} 40. Kh1 {[%emt 0:00:08]} Qxf3+ {[%emt 0:01:38] Double Attack} 41. Kg1 {[%emt 0:07:09]} Bg5 {[%emt 0:02:12]} 42. Qf5 $2 {[%emt 0:01:52]} (42. h4 $11 Qg4+ 43. Kh2 Qxh4+ 44. Kg2) 42... Be3+ {[%emt 0:00:25]} ({Stronger than} 42... Qxe2 43. Qc8+ Kh7 44. Qf5+ Kh8 45. Qf8+ Kh7 46. Qf5+ Kh8 $11) 43. Kh2 {[%emt 0:00:13]} Qxe2+ {[%emt 0:01:12] Double Attack} 44. Kg3 {[%emt 0:00:43]} Qe1+ {[%emt 0:04:36]} 45. Kg2 {[%emt 0:00:51]} Qg1+ {[%emt 0:02:12]} 46. Kf3 {[%emt 0:00:06]} Qf2+ {[%emt 0:01:23]} 47. Kg4 {[%emt 0:00:07]} Qe2+ $2 {[%emt 0:06:15]} (47... Qg2+ {mates} 48. Kh4 Bf2+ 49. Kh5 {[#]} g6+ $1 {[%mdl 576] Double Attack} 50. Kxh6 Be3+ {[%mdl 64] Discovered Attack} 51. Qg5 Qxg5#) 48. Kg3 $19 {[%emt 0:00:29]} Qe1+ 1/2-1/2